fUSD/lending_fUSD_20241220
["ID","MTS","AMOUNT","RATE_DAILY","PERIOD"]
[346101717,1734705111156,-500.0,0.00023561,4]
[346101718,1734705111165,-500.0,0.00023561,4]
[346101719,1734705111175,-500.0,0.00023561,4]
[346101720,1734705111185,-500.0,0.00023561,4]
[346101721,1734705111194,-500.0,0.00023561,4]
[346101722,1734705111207,-500.0,0.00023561,4]
[346101723,1734705111215,-500.0,0.00023561,4]
[346101724,1734705111225,-500.0,0.00023561,4]
[346101725,1734705111234,-500.0,0.00023561,4]
[346101726,1734705111243,-500.0,0.00023561,4]
[346101727,1734705111253,-500.0,0.00023561,4]
[346101728,1734705111262,-318.26540417,0.00023561,4]
[346101729,1734705111271,-500.0,0.00023561,4]
[346101730,1734705111280,-214.43825552,0.00023561,4]
[346101731,1734705111289,-500.0,0.00023561,4]
[346101732,1734705111302,-500.0,0.00023561,4]
[346101733,1734705111311,-500.0,0.00023561,4]
[346101734,1734705111320,-500.0,0.00023561,4]
[346101735,1734705111329,-500.0,0.00023561,4]
[346101736,1734705111339,-500.0,0.00023561,4]
[346101737,1734705111348,-500.0,0.00023561,4]
[346101738,1734705111358,-500.0,0.00023561,4]
[346101739,1734705111367,-500.0,0.00023561,4]
[346101740,1734705111376,-500.0,0.00023561,4]
[346101741,1734705111385,-500.0,0.00023561,4]
[346101742,1734705111395,-500.0,0.00023561,4]
[346101743,1734705111405,-500.0,0.00023561,4]
[346101744,1734705111414,-500.0,0.00023561,4]
[346101745,1734705111423,-500.0,0.00023561,4]
[346101746,1734705111432,-500.0,0.00023561,4]
[346101747,1734705111442,-189.93796973,0.00023561,4]
[346101748,1734705111454,-500.0,0.00023561,4]
[346101749,1734705111463,-500.0,0.00023561,4]
[346101750,1734705111472,-500.0,0.00023561,4]
[346101751,1734705111482,-500.0,0.00023561,4]
[346101752,1734705111491,-500.0,0.00023561,4]
[346101753,1734705111499,-503.23654628,0.00023561,4]
[346101754,1734705111509,-574.50068817,0.00023561,4]
[346101755,1734705111518,-500.0,0.00023561,4]
[346101756,1734705111528,-500.0,0.00023561,4]
[346101757,1734705111537,-500.0,0.00023561,4]
[346101758,1734705111546,-500.0,0.00023561,4]
[346101759,1734705111555,-425.34510826,0.00023561,4]
[346101760,1734705111564,-500.0,0.00023561,4]
[346101761,1734705111573,-500.0,0.00023561,4]
[346101762,1734705111583,-500.0,0.00023561,4]
[346101763,1734705111592,-500.0,0.00023561,4]
[346101764,1734705111601,-500.0,0.00023561,4]
[346101765,1734705111610,-500.0,0.00023561,4]
[346101766,1734705111619,-500.0,0.00023561,4]
[346101767,1734705111628,-500.0,0.00023561,4]
[346101768,1734705111638,-500.0,0.00023561,4]
[346101769,1734705111647,-500.0,0.00023561,4]
[346101770,1734705111655,-500.0,0.00023561,4]
[346101771,1734705111665,-373.62347976,0.00023561,4]
[346101772,1734705111674,-1177.85,0.00023561,4]
[346101773,1734705111684,-328.36212748,0.00023561,4]
[346101774,1734705111694,-654.6,0.00023561,4]
[346101775,1734705111707,-500.0,0.00023561,4]
[346101776,1734705111717,-500.0,0.00023561,4]
[346101777,1734705111726,-500.0,0.00023561,4]
[346101778,1734705111736,-500.0,0.00023561,4]
[346101779,1734705111746,-500.0,0.00023561,4]
[346101780,1734705111756,-563.99,0.00023561,4]
[346101781,1734705111766,-500.0,0.00023561,4]
[346101782,1734705111776,-1056.52,0.00023561,4]
[346101783,1734705111786,-362.04202023,0.00023561,4]
[346101784,1734705111797,-211.94989689,0.00023561,4]
[346101785,1734705111807,-500.0,0.00023561,4]
[346101786,1734705111816,-514.68737286,0.00023561,4]
[346101787,1734705111826,-500.0,0.00023561,4]
[346101788,1734705111835,-500.0,0.00023561,4]
[346101789,1734705111844,-500.0,0.00023561,4]
[346101790,1734705111854,-500.0,0.00023561,4]
[346101791,1734705111864,-500.0,0.00023561,4]
[346101792,1734705111874,-500.0,0.00023561,4]
[346101793,1734705111883,-500.0,0.00023561,4]
[346101794,1734705111893,-500.0,0.00023561,4]
[346101795,1734705111903,-500.0,0.00023561,4]
[346101796,1734705111913,-500.0,0.00023561,4]
[346101797,1734705111922,-500.0,0.00023561,4]
[346101798,1734705111932,-578.73855978,0.00023561,4]
[346101799,1734705111942,-500.0,0.00023561,4]
[346101800,1734705111954,-500.0,0.00023561,4]
[346101801,1734705111964,-500.0,0.00023561,4]
[346101802,1734705111973,-500.0,0.00023561,4]
[346101803,1734705111983,-500.0,0.00023561,4]
[346101804,1734705111993,-500.0,0.00023561,4]
[346101805,1734705112002,-500.0,0.00023561,4]
[346101806,1734705112012,-500.0,0.00023561,4]
[346101807,1734705112021,-772.0,0.00023561,4]
[346101808,1734705112031,-500.0,0.00023561,4]
[346101809,1734705112040,-500.0,0.00023561,4]
[346101810,1734705112049,-500.0,0.00023561,4]
[346101811,1734705112058,-417.31967358,0.00023561,4]
[346101812,1734705112067,-500.0,0.00023561,4]
[346101813,1734705112077,-500.0,0.00023561,4]
[346101814,1734705112086,-500.0,0.00023561,4]
[346101815,1734705112095,-500.0,0.00023561,4]
[346101816,1734705112104,-526.43,0.00023561,4]
[346101817,1734705112114,-500.0,0.00023561,4]
[346101818,1734705112123,-500.0,0.00023561,4]
[346101819,1734705112132,-500.0,0.00023561,4]
[346101820,1734705112141,-500.0,0.00023561,4]
[346101821,1734705112150,-500.0,0.00023561,4]
[346101822,1734705112159,-500.0,0.00023561,4]
[346101823,1734705112169,-500.0,0.00023561,4]
[346101824,1734705112179,-680.38,0.00023561,4]
[346101825,1734705112189,-567.82,0.00023561,4]
[346101826,1734705112202,-500.0,0.00023561,4]
[346101827,1734705112212,-500.0,0.00023561,4]
[346101828,1734705112221,-500.0,0.00023561,4]
[346101829,1734705112230,-500.0,0.00023561,4]
[346101830,1734705112240,-705.11,0.00023561,4]
[346101831,1734705112250,-500.0,0.00023561,4]
[346101832,1734705112260,-500.0,0.00023561,4]
[346101833,1734705112269,-500.0,0.00023561,4]
[346101834,1734705112279,-500.0,0.00023561,4]
[346101835,1734705112289,-500.0,0.00023561,4]
[346101836,1734705112299,-500.0,0.00023561,4]
[346101837,1734705112310,-1869.54969268,0.00023561,4]
[346101838,1734705112320,-500.0,0.00023561,4]
[346101839,1734705112331,-563.86448818,0.00023561,4]
[346101840,1734705112340,-500.0,0.00023561,4]
[346101841,1734705112351,-500.0,0.00023561,4]
[346101842,1734705112361,-500.0,0.00023561,4]
[346101843,1734705112370,-989.25,0.00023561,4]
[346101844,1734705112381,-500.0,0.00023561,4]
[346101845,1734705112391,-500.0,0.00023561,4]
[346101846,1734705112400,-544.06,0.00023561,4]
[346101847,1734705112410,-703.96,0.00023561,4]
[346101848,1734705112420,-500.0,0.00023561,4]
[346101849,1734705112623,-500.0,0.00023561,2]
[346101850,1734705112633,-500.0,0.00023561,4]
[346101851,1734705112643,-500.0,0.00023561,4]
[346101852,1734705112654,-500.0,0.00023561,4]
[346101853,1734705112664,-1124.77,0.00023561,4]
[346101854,1734705112674,-500.0,0.00023561,4]
[346101855,1734705112684,-1454.97,0.00023561,5]
[346101856,1734705112694,-500.0,0.00023561,4]
[346101857,1734705112706,-187.25943366,0.00023561,4]
[346101858,1734705112716,-500.0,0.00023561,4]
[346101859,1734705112727,-500.0,0.00023561,4]
[346101860,1734705112737,-500.0,0.00023561,4]
[346101861,1734705112746,-622.43,0.00023561,4]
[346101862,1734705112756,-500.0,0.00023561,4]
[346101863,1734705112765,-500.0,0.00023561,2]
[346101864,1734705112776,-500.0,0.00023561,4]
[346101865,1734705112786,-578.99,0.00023561,4]
[346101866,1734705112796,-500.0,0.00023561,4]
[346101867,1734705112806,-500.0,0.00023561,4]
[346101868,1734705112816,-500.0,0.00023561,4]
[346101869,1734705112825,-500.0,0.00023561,4]
[346101870,1734705112835,-500.0,0.00023561,4]
[346101871,1734705112844,-500.0,0.00023561,4]
[346101872,1734705112855,-590.7,0.00023561,4]
[346101873,1734705112866,-500.0,0.00023561,4]
[346101874,1734705112876,-743.45,0.00023561,4]
[346101875,1734705112886,-500.0,0.00023561,4]
[346101876,1734705112896,-500.0,0.00023561,4]
[346101877,1734705112906,-587.7,0.00023561,4]
[346101878,1734705112917,-1581.26,0.00023561,4]
[346101879,1734705112927,-601.6,0.00023561,4]
[346101880,1734705112937,-533.84,0.00023561,4]
[346101881,1734705112946,-500.0,0.00023561,4]
[346101882,1734705112958,-755.6,0.00023561,4]
[346101883,1734705112968,-500.0,0.00023561,4]
[346101884,1734705112977,-539.26,0.00023561,4]
[346101885,1734705112987,-500.0,0.00023561,4]
[346101886,1734705112998,-500.0,0.00023561,4]
[346101887,1734705113008,-864.62,0.00023561,4]
[346101888,1734705113019,-500.0,0.00023561,4]
[346101889,1734705113029,-866.89,0.00023561,4]
[346101890,1734705113039,-500.0,0.00023561,4]
[346101891,1734705113050,-667.5,0.00023561,4]
[346101892,1734705113060,-500.0,0.00023561,4]
[346101893,1734705113070,-567.86,0.00023561,4]
[346101894,1734705113081,-500.0,0.00023561,4]
[346101895,1734705113091,-500.0,0.00023561,4]
[346101896,1734705113101,-569.33,0.00023561,2]
[346101897,1734705113112,-1054.51,0.00023561,4]
[346101898,1734705113122,-500.0,0.00023561,4]
[346101899,1734705113133,-500.0,0.00023561,4]
[346101900,1734705113143,-621.2590527,0.00023561,4]
[346101901,1734705113154,-1134.57,0.00023561,4]
[346101902,1734705113164,-527.02043484,0.00023561,4]
[346101903,1734705113174,-760.73,0.00023561,4]
[346101904,1734705113185,-500.0,0.00023561,4]
[346101905,1734705113194,-500.0,0.00023561,4]
[346101906,1734705113207,-500.0,0.00023561,4]
[346101907,1734705113217,-500.0,0.00023561,4]
[346101908,1734705113227,-500.0,0.00023561,4]
[346101909,1734705113237,-675.37,0.00023561,4]
[346101910,1734705113246,-500.0,0.00023561,4]
[346101911,1734705113256,-500.0,0.00023561,4]
[346101912,1734705113266,-500.0,0.00023561,4]
[346101913,1734705113276,-500.0,0.00023561,4]
[346101914,1734705113286,-500.0,0.00023561,4]
[346101915,1734705113300,-500.0,0.00023561,4]
[346101916,1734705113310,-500.0,0.00023561,4]
[346101917,1734705113320,-257.75,0.00023561,4]
[346101918,1734705113330,-500.0,0.00023561,4]
[346101919,1734705113340,-500.0,0.00023561,4]
[346101920,1734705113350,-500.0,0.00023561,4]
[346101921,1734705113359,-647.63,0.00023561,4]
[346101922,1734705113369,-500.0,0.00023561,4]
[346101923,1734705113379,-500.0,0.00023561,4]
[346101924,1734705113390,-500.0,0.00023561,4]
[346101925,1734705113400,-500.0,0.00023561,4]
[346101926,1734705113409,-500.0,0.00023561,4]
[346101927,1734705113420,-500.0,0.00023561,4]
[346101928,1734705113430,-500.0,0.00023561,4]
[346101929,1734705113440,-500.0,0.00023561,4]
[346101930,1734705113449,-500.0,0.00023561,4]
[346101931,1734705113462,-500.0,0.00023561,4]
[346101932,1734705113473,-500.0,0.00023561,4]
[346101933,1734705113484,-619.34,0.00023561,4]
[346101934,1734705113495,-1919.94,0.00023561,4]
[346101935,1734705113505,-500.0,0.00023561,4]
[346101936,1734705113515,-500.0,0.00023561,4]
[346101937,1734705113525,-500.0,0.00023561,4]
[346101938,1734705113535,-500.0,0.00023561,4]
[346101939,1734705113544,-1914.57,0.00023561,4]
[346101940,1734705113554,-394.88174906,0.00023561,4]
[346101941,1734705113563,-500.0,0.00023561,4]
[346101942,1734705113573,-733.73,0.00023561,4]
[346101943,1734705113583,-500.0,0.00023561,4]
[346101944,1734705113592,-500.0,0.00023561,4]
[346101945,1734705113602,-696.31,0.00023561,4]
[346101946,1734705113613,-704.45,0.00023561,4]
[346101947,1734705113624,-592.46,0.00023561,4]
[346101948,1734705113634,-500.0,0.00023561,4]
[346101949,1734705113644,-865.58,0.00023561,4]
[346101950,1734705113654,-624.83,0.00023561,4]
[346101951,1734705113664,-975.48,0.00023561,4]
[346101952,1734705113674,-515.76,0.00023561,4]
[346101953,1734705113683,-500.0,0.00023561,4]
[346101954,1734705113693,-500.0,0.00023561,4]
[346101955,1734705113706,-500.0,0.00023561,4]
[346101956,1734705113716,-500.0,0.00023561,4]
[346101957,1734705113726,-500.0,0.00023561,4]
[346101958,1734705113736,-500.0,0.00023561,4]
[346101959,1734705113746,-732.91,0.00023561,4]
[346101960,1734705113755,-1106.39,0.00023561,4]
[346101961,1734705113765,-505.51,0.00023561,4]
[346101962,1734705113775,-500.0,0.00023561,4]
[346101963,1734705113785,-880.48,0.00023561,4]
[346101964,1734705113794,-500.0,0.00023561,4]
[346101965,1734705113804,-500.0,0.00023561,4]
[346101966,1734705113814,-500.0,0.00023561,4]
[346101967,1734705113824,-500.0,0.00023561,4]
[346101968,1734705113833,-500.0,0.00023561,4]
[346101969,1734705113843,-500.0,0.00023561,4]
[346101970,1734705113853,-557.31128557,0.00023561,4]
[346101971,1734705113862,-500.0,0.00023561,4]
[346101972,1734705113872,-549.35,0.00023561,4]
[346101973,1734705113882,-500.0,0.00023561,4]
[346101974,1734705113891,-500.0,0.00023561,4]
[346101975,1734705113901,-500.0,0.00023561,4]
[346101976,1734705113911,-500.0,0.00023561,4]
[346101977,1734705113920,-500.0,0.00023561,4]
[346101978,1734705113930,-500.0,0.00023561,4]
[346101979,1734705113940,-500.0,0.00023561,4]
[346101980,1734705113949,-500.0,0.00023561,4]
[346101981,1734705113961,-500.0,0.00023561,4]
[346101982,1734705113971,-500.0,0.00023561,4]
[346101983,1734705113980,-500.0,0.00023561,4]
[346101984,1734705113990,-500.0,0.00023561,4]
[346101985,1734705113999,-207.06680567,0.00023561,4]
[346101986,1734705114009,-626.11,0.00023561,4]
[346101987,1734705114019,-575.74,0.00023561,4]
[346101988,1734705114028,-500.0,0.00023561,4]
[346101989,1734705114038,-500.0,0.00023561,4]
[346101990,1734705114047,-892.44,0.00023561,4]
[346101991,1734705114056,-867.32,0.00023561,4]
[346101992,1734705114066,-500.0,0.00023561,4]
[346101993,1734705114075,-500.0,0.00023561,4]
[346101994,1734705114085,-517.94706215,0.00023561,4]
[346101995,1734705114094,-500.0,0.00023561,4]
[346101996,1734705114104,-572.67,0.00023561,4]
[346101997,1734705114114,-882.96,0.00023561,4]
[346101998,1734705114124,-628.87,0.00023561,4]
[346101999,1734705114134,-500.0,0.00023561,4]
[346102000,1734705114143,-500.0,0.00023561,4]
[346102001,1734705114152,-531.92,0.00023561,4]
[346102002,1734705114162,-500.0,0.00023561,4]
[346102003,1734705114172,-500.0,0.00023561,4]
[346102004,1734705114182,-1531.54,0.00023561,4]
[346102005,1734705114191,-797.56,0.00023561,4]
[346102006,1734705114204,-573.13,0.00023561,4]
[346102007,1734705114213,-500.0,0.00023561,4]
[346102008,1734705114223,-500.0,0.00023561,4]
[346102009,1734705114233,-1191.56,0.00023561,4]
[346102010,1734705114242,-898.63,0.00023561,4]
[346102011,1734705114253,-1462.97,0.00023561,4]
[346102012,1734705114262,-500.0,0.00023561,4]
[346102013,1734705114272,-690.32,0.00023561,4]
[346102014,1734705114282,-500.0,0.00023561,4]
[346102015,1734705114292,-895.67,0.00023561,4]
[346102016,1734705114302,-500.0,0.00023561,4]
[346102017,1734705114313,-500.0,0.00023561,4]
[346102018,1734705114323,-2453.25,0.00023561,4]
[346102019,1734705114333,-500.0,0.00023561,4]
[346102020,1734705114343,-500.0,0.00023561,4]
[346102021,1734705114354,-500.0,0.00023561,4]
[346102022,1734705114364,-500.0,0.00023561,4]
[346102023,1734705114374,-500.0,0.00023561,4]
[346102024,1734705114386,-596.16,0.00023561,4]
[346102025,1734705114395,-500.0,0.00023561,4]
[346102026,1734705114405,-2002.3,0.00023561,4]
[346102027,1734705114415,-500.0,0.00023561,4]
[346102028,1734705114425,-500.0,0.00023561,4]
[346102029,1734705114435,-500.0,0.00023561,4]
[346102030,1734705114444,-500.0,0.00023561,4]
[346102031,1734705114457,-500.0,0.00023561,4]
[346102032,1734705114467,-2126.04,0.00023561,4]
[346102033,1734705114477,-1149.07,0.00023561,4]
[346102034,1734705114487,-1147.67,0.00023561,4]
[346102035,1734705114497,-1974.63,0.00023561,4]
[346102036,1734705114507,-922.26,0.00023561,4]
[346102037,1734705114516,-585.88,0.00023561,4]
[346102038,1734705114526,-645.53,0.00023561,4]
[346102039,1734705114536,-500.0,0.00023561,4]
[346102040,1734705114546,-1312.39,0.00023561,4]
[346102041,1734705114556,-1995.26,0.00023561,4]
[346102042,1734705114566,-626.7,0.00023561,4]
[346102043,1734705114576,-591.96,0.00023561,4]
[346102044,1734705114586,-500.0,0.00023561,4]
[346102045,1734705114596,-369.77037057,0.00023561,4]
[346102046,1734705114606,-4286.95,0.00023561,4]
[346102047,1734705114616,-1869.88,0.00023561,4]
[346102048,1734705114626,-1582.21,0.00023561,4]
[346102049,1734705114636,-500.0,0.00023561,4]
[346102050,1734705114645,-1996.44,0.00023561,4]
[346102051,1734705114655,-918.42,0.00023561,4]
[346102052,1734705114664,-500.0,0.00023561,4]
[346102053,1734705114674,-500.0,0.00023561,4]
[346102054,1734705114684,-901.44,0.00023561,4]
[346102055,1734705114694,-2729.02,0.00023561,4]
[346102056,1734705114707,-576.4,0.00023561,4]
[346102057,1734705114717,-500.0,0.00023561,4]
[346102058,1734705114727,-500.0,0.00023561,4]
[346102059,1734705114737,-2844.5,0.00023561,4]
[346102060,1734705114747,-2473.03,0.00023561,4]
[346102061,1734705114756,-4012.09,0.00023561,4]
[346102062,1734705114766,-500.0,0.00023561,4]
[346102063,1734705114776,-273.48969266,0.00023561,4]
[346102064,1734705114786,-500.0,0.00023561,4]
[346102065,1734705114796,-516.15,0.00023561,4]
[346102066,1734705114806,-542.96,0.00023561,4]
[346102067,1734705114816,-877.15,0.00023561,4]
[346102068,1734705114826,-1483.16,0.00023561,4]
[346102069,1734705114835,-3922.15,0.00023561,4]
[346102070,1734705114845,-881.23,0.00023561,4]
[346102071,1734705114854,-2575.39,0.00023561,4]
[346102072,1734705114864,-14313.01,0.00023561,4]
[346102073,1734705114873,-500.0,0.00023561,4]
[346102074,1734705114882,-550.65,0.00023561,4]
[346102075,1734705114892,-1199.62,0.00023561,4]
[346102076,1734705114902,-5233.77,0.00023561,4]
[346102077,1734705114913,-526.33,0.00023561,4]
[346102078,1734705114922,-1198.28,0.00023561,4]
[346102079,1734705114932,-523.87225168,0.00023561,4]
[346102080,1734705114942,-822.83,0.00023561,4]
[346102081,1734705114955,-500.0,0.00023561,4]
[346102082,1734705114965,-1305.96,0.00023561,4]
[346102083,1734705114975,-500.0,0.00023561,4]
[346102084,1734705114985,-2054.82,0.00023561,4]
[346102085,1734705114995,-781.1,0.00023561,4]
[346102086,1734705115005,-500.0,0.00023561,4]
[346102087,1734705115014,-2976.46,0.00023561,4]
[346102088,1734705115024,-532.86,0.00023561,4]
[346102089,1734705115033,-1376.74,0.00023561,4]
[346102090,1734705115043,-1406.29,0.00023561,4]
[346102091,1734705115053,-523.99694872,0.00023561,4]
[346102092,1734705115063,-732.83,0.00023561,4]
[346102093,1734705115142,-2019.8,0.00023561,4]
[346102094,1734705115152,-500.0,0.00023561,4]
[346102095,1734705115162,-594.71,0.00023561,4]
[346102096,1734705115171,-623.99,0.00023561,4]
[346102097,1734705115181,-14207.49,0.00023561,4]
[346102098,1734705115191,-207.565158,0.00023561,4]
[346102099,1734705115201,-3380.89,0.00023561,4]
[346102100,1734705115217,-500.0,0.00023561,4]
[346102101,1734705115226,-584.56,0.00023561,4]
[346102102,1734705115236,-1870.48,0.00023561,4]
[346102103,1734705115246,-2641.01,0.00023561,4]
[346102104,1734705115258,-1151.74,0.00023561,4]
[346102105,1734705115268,-1068.83,0.00023561,4]
[346102106,1734705115277,-500.0,0.00023561,4]
[346102107,1734705115287,-212.84597082,0.00023561,4]
[346102108,1734705115299,-2387.91,0.00023561,4]
[346102109,1734705115309,-500.0,0.00023561,4]
[346102110,1734705115318,-2569.35,0.00023561,4]
[346102111,1734705115328,-500.0,0.00023561,4]
[346102112,1734705115338,-1641.53,0.00023561,4]
[346102113,1734705115348,-7684.97,0.00023561,4]
[346102114,1734705115357,-346.27720478,0.00023561,4]
[346102115,1734705115368,-500.0,0.00023561,4]
[346102116,1734705115382,-1122.02,0.00023561,4]
[346102117,1734705115392,-500.0,0.00023561,4]
[346102118,1734705115401,-500.0,0.00023561,4]
[346102119,1734705115411,-3739.73,0.00023561,4]
[346102120,1734705115421,-1657.74,0.00023561,4]
[346102121,1734705115430,-572.34,0.00023561,4]
[346102122,1734705115439,-1002.92,0.00023561,4]
[346102123,1734705115449,-500.0,0.00023561,4]
[346102124,1734705115464,-500.0,0.00023561,4]
[346102125,1734705115473,-500.0,0.00023561,4]
[346102126,1734705115482,-500.0,0.00023561,4]
[346102127,1734705115492,-1449.75,0.00023561,4]
[346102128,1734705115502,-4285.0,0.00023561,4]
[346102129,1734705115511,-500.0,0.00023561,4]
[346102130,1734705115521,-1876.8,0.00023561,4]
[346102131,1734705115530,-500.0,0.00023561,4]
[346102132,1734705115540,-3137.09,0.00023561,4]
[346102133,1734705115550,-500.0,0.00023561,4]
[346102134,1734705115559,-500.0,0.00023561,4]
[346102135,1734705115569,-171.847622,0.00023561,4]
[346102136,1734705115579,-938.17,0.00023561,4]
[346102137,1734705115588,-500.0,0.00023561,4]
[346102138,1734705115598,-1128.3,0.00023561,4]
[346102139,1734705115607,-500.0,0.00023561,4]
[346102140,1734705115617,-630.09,0.00023561,4]
[346102141,1734705115627,-653.61,0.00023561,4]
[346102142,1734705115637,-500.0,0.00023561,4]
[346102143,1734705115647,-1928.85,0.00023561,4]
[346102144,1734705115656,-2099.69,0.00023561,4]
[346102145,1734705115666,-7043.04,0.00023561,4]
[346102146,1734705115676,-500.0,0.00023561,4]
[346102147,1734705115685,-2163.13,0.00023561,4]
[346102148,1734705115695,-970.03,0.00023561,4]
[346102149,1734705115708,-2134.52,0.00023561,4]
[346102150,1734705115718,-500.0,0.00023561,4]
[346102151,1734705115728,-500.0,0.00023561,4]
[346102152,1734705115738,-2369.63,0.00023561,4]
[346102153,1734705115748,-1668.69,0.00023561,4]
[346102154,1734705115757,-158.831874,0.00023561,4]
[346102155,1734705115767,-500.0,0.00023561,4]
[346102156,1734705115776,-500.0,0.00023561,4]
[346102157,1734705115786,-500.0,0.00023561,4]
[346102158,1734705115796,-500.0,0.00023561,4]
[346102159,1734705115806,-500.0,0.00023561,4]
[346102160,1734705115816,-653.02,0.00023561,4]
[346102161,1734705115826,-500.0,0.00023561,4]
[346102162,1734705115836,-579.4870096,0.00023561,4]
[346102163,1734705115846,-500.0,0.00023561,4]
[346102164,1734705115856,-505.43,0.00023561,4]
[346102165,1734705115866,-311.79432118,0.00023561,4]
[346102166,1734705115876,-1168.08,0.00023561,4]
[346102167,1734705115886,-709.06,0.00023561,4]
[346102168,1734705115896,-533.99,0.00023561,4]
[346102169,1734705115906,-500.0,0.00023561,4]
[346102170,1734705115917,-1659.64,0.00023561,4]
[346102171,1734705115927,-500.0,0.00023561,4]
[346102172,1734705115937,-729.79,0.00023561,4]
[346102173,1734705115948,-500.0,0.00023561,4]
[346102174,1734705115961,-500.0,0.00023561,4]
[346102175,1734705115971,-875.71,0.00023561,4]
[346102176,1734705115981,-644.22,0.00023561,4]
[346102177,1734705115990,-560.49,0.00023561,4]
[346102178,1734705116001,-500.0,0.00023561,4]
[346102179,1734705116011,-11283.25,0.00023561,4]
[346102180,1734705116021,-500.0,0.00023561,4]
[346102181,1734705116031,-500.0,0.00023561,4]
[346102182,1734705116041,-1169.27,0.00023561,4]
[346102183,1734705116051,-500.0,0.00023561,4]
[346102184,1734705116062,-500.0,0.00023561,4]
[346102185,1734705116072,-1083.29,0.00023561,4]
[346102186,1734705116082,-500.0,0.00023561,4]
[346102187,1734705116092,-1374.41,0.00023561,4]
[346102188,1734705116102,-500.0,0.00023561,4]
[346102189,1734705116112,-500.0,0.00023561,4]
[346102190,1734705116122,-500.0,0.00023561,4]
[346102191,1734705116132,-500.0,0.00023561,4]
[346102192,1734705116143,-1644.02,0.00023561,4]
[346102193,1734705116154,-766.85,0.00023561,4]
[346102194,1734705116164,-1990.15,0.00023561,4]
[346102195,1734705116174,-500.0,0.00023561,4]
[346102196,1734705116185,-1025.82,0.00023561,4]
[346102197,1734705116195,-1150.78,0.00023561,4]
[346102198,1734705116210,-500.0,0.00023561,4]
[346102199,1734705116221,-500.0,0.00023561,4]
[346102200,1734705116232,-500.0,0.00023561,4]
[346102201,1734705116242,-626.0,0.00023561,4]
[346102202,1734705116253,-2550.51,0.00023561,4]
[346102203,1734705116263,-500.0,0.00023561,4]
[346102204,1734705116274,-1894.92,0.00023561,4]
[346102205,1734705116284,-1717.15,0.00023561,4]
[346102206,1734705116295,-777.61,0.00023561,4]
[346102207,1734705116307,-2160.93,0.00023561,4]
[346102208,1734705116322,-607.3141465,0.00023561,4]
[346102209,1734705116336,-500.0,0.00023561,4]
[346102210,1734705116347,-500.0,0.00023561,4]
[346102211,1734705116357,-155.12,0.00023671,30]
[346102212,1734705116368,-500.0,0.00023675,120]
[346102213,1734705116379,-2000.0,0.00023675,120]
[346102214,1734705116391,-200.0,0.00023675,120]
[346102215,1734705116401,-1958.81,0.00023687,2]
[346102216,1734705116411,-321.47526,0.00023688,7]